[Event "*** SCC Grand Prix: Titled Tuesday Blitz"]
[Site "Chess.com"]
[Date "2020.07.14"]
[Round "10"]
[White "BakaPG"]
[Black "White_Ghost"]
[Result "1/2-1/2"]
[WhiteElo "2628"]
[BlackElo "2513"]
[TimeControl "180+1"]
[EndTime "12:00:02 PDT"]
[Termination "Game drawn by repetition"]

1. e4 {[%clk 0:03:00.9]} 1... e5 {[%clk 0:02:34.7]} 2. Nf3 {[%clk 0:02:59.4]}
2... Nc6 {[%clk 0:02:35.1]} 3. Bb5 {[%clk 0:02:58.5]} 3... a6 {[%clk 0:02:35.3]}
4. Ba4 {[%clk 0:02:58.5]} 4... b5 {[%clk 0:02:35.9]} 5. Bb3 {[%clk 0:02:58]}
5... Na5 {[%clk 0:02:36.8]} 6. O-O {[%clk 0:02:56]} 6... d6 {[%clk 0:02:37.2]}
7. d4 {[%clk 0:02:49.5]} 7... exd4 {[%clk 0:02:38.1]} 8. Nxd4 {[%clk 0:02:48.2]}
8... Bb7 {[%clk 0:02:38.6]} 9. a4 {[%clk 0:02:40.5]} 9... Nxb3 {[%clk
0:02:36.1]} 10. cxb3 {[%clk 0:02:38.7]} 10... b4 {[%clk 0:02:17.7]} 11. Nd2
{[%clk 0:02:26.8]} 11... Nf6 {[%clk 0:02:17.3]} 12. Re1 {[%clk 0:02:26.8]} 12...
Be7 {[%clk 0:02:17.1]} 13. Nf5 {[%clk 0:02:24.5]} 13... O-O {[%clk 0:02:16.6]}
14. Qf3 {[%clk 0:02:24.5]} 14... Nd7 {[%clk 0:02:01.8]} 15. Nc4 {[%clk 0:02:21]}
15... Bf6 {[%clk 0:01:44.1]} 16. Bf4 {[%clk 0:02:12.8]} 16... Re8 {[%clk
0:01:32.8]} 17. Na5 {[%clk 0:02:07.3]} 17... Qb8 {[%clk 0:01:25.1]} 18. Qg4
{[%clk 0:01:52.3]} 18... Ne5 {[%clk 0:01:02.9]} 19. Bxe5 {[%clk 0:01:48.7]}
19... Rxe5 {[%clk 0:01:01.9]} 20. Nc4 {[%clk 0:01:37.9]} 20... Re6 {[%clk
0:00:56.5]} 21. h4 {[%clk 0:01:35.7]} 21... Qe8 {[%clk 0:00:50.7]} 22. f3 {[%clk
0:01:21.2]} 22... d5 {[%clk 0:00:50.2]} 23. Na5 {[%clk 0:01:20.6]} 23... Bc8
{[%clk 0:00:50.2]} 24. h5 {[%clk 0:01:13.8]} 24... dxe4 {[%clk 0:00:47.7]} 25.
fxe4 {[%clk 0:01:11.2]} 25... Re5 {[%clk 0:00:28.3]} 26. Qg3 {[%clk 0:00:50.6]}
26... Rxa5 {[%clk 0:00:22.1]} 27. e5 {[%clk 0:00:46.6]} 27... Bxf5 {[%clk
0:00:19.2]} 28. exf6 {[%clk 0:00:45.2]} 28... Qf8 {[%clk 0:00:19.8]} 29. Qxc7
{[%clk 0:00:40.2]} 29... Rd5 {[%clk 0:00:17.7]} 30. fxg7 {[%clk 0:00:36.4]}
30... Qxg7 {[%clk 0:00:16.3]} 31. Re3 {[%clk 0:00:36.9]} 31... Be6 {[%clk
0:00:15.8]} 32. Rf1 {[%clk 0:00:31]} 32... Rg5 {[%clk 0:00:16]} 33. Rf2 {[%clk
0:00:31]} 33... Rc8 {[%clk 0:00:15.5]} 34. Qxc8+ {[%clk 0:00:22.5]} 34... Bxc8
{[%clk 0:00:15.2]} 35. Re8+ {[%clk 0:00:22.9]} 35... Qf8 {[%clk 0:00:15.7]} 36.
Rxf8+ {[%clk 0:00:22.7]} 36... Kxf8 {[%clk 0:00:16.6]} 37. Rf4 {[%clk
0:00:20.6]} 37... a5 {[%clk 0:00:16.1]} 38. Kf2 {[%clk 0:00:20.6]} 38... Be6
{[%clk 0:00:15.5]} 39. Ke3 {[%clk 0:00:17.3]} 39... Rg3+ {[%clk 0:00:14.9]} 40.
Kd4 {[%clk 0:00:16.9]} 40... Rg4 {[%clk 0:00:14.2]} 41. Rxg4 {[%clk 0:00:13.6]}
41... Bxg4 {[%clk 0:00:15.1]} 42. h6 {[%clk 0:00:13.9]} 42... Ke7 {[%clk
0:00:14.4]} 43. Kc5 {[%clk 0:00:14]} 43... Kf6 {[%clk 0:00:14.6]} 44. Kb6 {[%clk
0:00:14.9]} 44... Kg6 {[%clk 0:00:14.9]} 45. Kxa5 {[%clk 0:00:15.8]} 45... Kxh6
{[%clk 0:00:15.4]} 46. Kxb4 {[%clk 0:00:16.7]} 46... Kg5 {[%clk 0:00:16]} 47. a5
{[%clk 0:00:16.1]} 47... h5 {[%clk 0:00:16.3]} 48. Kc5 {[%clk 0:00:15.3]} 48...
Bf5 {[%clk 0:00:13.5]} 49. b4 {[%clk 0:00:15.3]} 49... Be4 {[%clk 0:00:13.5]}
50. b5 {[%clk 0:00:13.2]} 50... Bxg2 {[%clk 0:00:13.7]} 51. b6 {[%clk 0:00:13]}
51... h4 {[%clk 0:00:14.2]} 52. a6 {[%clk 0:00:13.3]} 52... h3 {[%clk
0:00:14.4]} 53. b7 {[%clk 0:00:14.2]} 53... h2 {[%clk 0:00:13.3]} 54. b8=Q
{[%clk 0:00:13.8]} 54... h1=Q {[%clk 0:00:13.7]} 55. Qg3+ {[%clk 0:00:11.1]}
55... Kf6 {[%clk 0:00:12.9]} 56. Qf4+ {[%clk 0:00:09.5]} 56... Kg6 {[%clk
0:00:13.3]} 57. b4 {[%clk 0:00:06.8]} 57... Qh5+ {[%clk 0:00:11]} 58. Kb6 {[%clk
0:00:06]} 58... Qg5 {[%clk 0:00:06.2]} 59. Qd6+ {[%clk 0:00:03.2]} 59... Kg7
{[%clk 0:00:04.3]} 60. b5 {[%clk 0:00:03]} 60... Qe3+ {[%clk 0:00:04.7]} 61. Qc5
{[%clk 0:00:03.1]} 61... Qe6+ {[%clk 0:00:05]} 62. Ka5 {[%clk 0:00:03]} 62...
Qa2+ {[%clk 0:00:05.2]} 63. Kb6 {[%clk 0:00:03]} 63... Qe6+ {[%clk 0:00:05.8]}
64. Ka7 {[%clk 0:00:03.2]} 64... Qd7+ {[%clk 0:00:05.7]} 65. Kb6 {[%clk
0:00:03.2]} 65... Qd8+ {[%clk 0:00:05.9]} 66. Qc7 {[%clk 0:00:02.5]} 66... Qd4+
{[%clk 0:00:06.5]} 67. Qc5 {[%clk 0:00:02.6]} 67... Qd8+ {[%clk 0:00:07.1]} 68.
Ka7 {[%clk 0:00:01.8]} 68... Qd7+ {[%clk 0:00:06.8]} 69. Kb6 {[%clk 0:00:01.9]}
69... Qe6+ {[%clk 0:00:07.6]} 1/2-1/2

[Event "*** SCC Grand Prix: Titled Tuesday Blitz"]
[Site "Chess.com"]
[Date "2020.07.14"]
[Round "10"]
[White "dennisodessa"]
[Black "Terao90"]
[Result "1/2-1/2"]
[WhiteElo "2430"]
[BlackElo "2285"]
[TimeControl "180+1"]
[EndTime "12:00:05 PDT"]
[Termination "Game drawn - insufficient material"]

1. d4 {[%clk 0:03:00.1]} 1... Nf6 {[%clk 0:02:58.9]} 2. c4 {[%clk 0:03:00.3]}
2... e6 {[%clk 0:02:58.5]} 3. Nc3 {[%clk 0:03:00.3]} 3... Bb4 {[%clk 0:02:57.7]}
4. Qc2 {[%clk 0:03:00.1]} 4... d5 {[%clk 0:02:57.3]} 5. a3 {[%clk 0:03:00]} 5...
Bxc3+ {[%clk 0:02:56]} 6. Qxc3 {[%clk 0:03:00.9]} 6... Ne4 {[%clk 0:02:54.7]} 7.
Qc2 {[%clk 0:03:00]} 7... c5 {[%clk 0:02:54.9]} 8. cxd5 {[%clk 0:02:39.4]} 8...
exd5 {[%clk 0:02:52.4]} 9. Nf3 {[%clk 0:02:33.9]} 9... Nc6 {[%clk 0:02:50.7]}
10. e3 {[%clk 0:02:28.8]} 10... Bf5 {[%clk 0:02:47.8]} 11. Bd3 {[%clk 0:02:28]}
11... c4 {[%clk 0:02:46.4]} 12. Bxe4 {[%clk 0:02:27.7]} 12... Bxe4 {[%clk
0:02:47.3]} 13. Qd1 {[%clk 0:02:27.7]} 13... O-O {[%clk 0:02:45.7]} 14. O-O
{[%clk 0:02:27.6]} 14... Re8 {[%clk 0:02:37.2]} 15. Bd2 {[%clk 0:02:22.3]} 15...
b5 {[%clk 0:02:36.7]} 16. Ne1 {[%clk 0:02:15.2]} 16... a5 {[%clk 0:02:34.4]} 17.
f3 {[%clk 0:02:15]} 17... Bg6 {[%clk 0:02:33.8]} 18. Nc2 {[%clk 0:02:00.4]}
18... Qb6 {[%clk 0:02:31.7]} 19. Re1 {[%clk 0:01:36.9]} 19... b4 {[%clk
0:02:27.3]} 20. a4 {[%clk 0:01:23.8]} 20... Rac8 {[%clk 0:02:00.6]} 21. Kh1
{[%clk 0:01:18.4]} 21... Ne7 {[%clk 0:01:32.5]} 22. e4 {[%clk 0:01:17.2]} 22...
Nc6 {[%clk 0:01:25]} 23. exd5 {[%clk 0:01:08.7]} 23... Nxd4 {[%clk 0:01:24.3]}
24. Be3 {[%clk 0:00:55.2]} 24... Bxc2 {[%clk 0:01:21.5]} 25. Qxd4 {[%clk
0:00:54.3]} 25... Qxd4 {[%clk 0:01:18]} 26. Bxd4 {[%clk 0:00:55.2]} 26... Rxe1+
{[%clk 0:01:07.8]} 27. Rxe1 {[%clk 0:00:56.1]} 27... Bxa4 {[%clk 0:01:07.9]} 28.
Bb6 {[%clk 0:00:56.3]} 28... c3 {[%clk 0:00:37.5]} 29. bxc3 {[%clk 0:00:57.2]}
29... bxc3 {[%clk 0:00:38.4]} 30. Bxa5 {[%clk 0:00:57]} 30... c2 {[%clk
0:00:38.6]} 31. Bd2 {[%clk 0:00:56.3]} 31... Rd8 {[%clk 0:00:36.3]} 32. Kg1
{[%clk 0:00:44.9]} 32... Rxd5 {[%clk 0:00:34.9]} 33. Bc1 {[%clk 0:00:43.4]}
33... Rd1 {[%clk 0:00:30.1]} 34. Kf2 {[%clk 0:00:43.2]} 34... f6 {[%clk
0:00:29]} 35. Ba3 {[%clk 0:00:25.3]} 35... Kf7 {[%clk 0:00:26.5]} 36. Re4 {[%clk
0:00:21.2]} 36... Bc6 {[%clk 0:00:18.8]} 37. Rc4 {[%clk 0:00:20.9]} 37... Bd5
{[%clk 0:00:05.9]} 38. Rxc2 {[%clk 0:00:20.7]} 38... Ra1 {[%clk 0:00:06.4]} 39.
Bc5 {[%clk 0:00:20.1]} 39... Ra6 {[%clk 0:00:05.9]} 40. Be3 {[%clk 0:00:19.1]}
40... g5 {[%clk 0:00:05.6]} 41. g4 {[%clk 0:00:17.2]} 41... Kg6 {[%clk
0:00:05.4]} 42. h3 {[%clk 0:00:17.4]} 42... h5 {[%clk 0:00:05.4]} 43. Kg3 {[%clk
0:00:15.6]} 43... h4+ {[%clk 0:00:05]} 44. Kf2 {[%clk 0:00:15.8]} 44... Ra3
{[%clk 0:00:05.6]} 45. Rd2 {[%clk 0:00:14.3]} 45... Bc6 {[%clk 0:00:04.8]} 46.
Rc2 {[%clk 0:00:13.3]} 46... Ba8 {[%clk 0:00:04.8]} 47. Rd2 {[%clk 0:00:14.2]}
47... Rb3 {[%clk 0:00:04.3]} 48. Rd6 {[%clk 0:00:12.6]} 48... Rb2+ {[%clk
0:00:02.2]} 49. Bd2 {[%clk 0:00:12.7]} 49... Kf7 {[%clk 0:00:01.9]} 50. Rd7+
{[%clk 0:00:08.5]} 50... Ke6 {[%clk 0:00:01.9]} 51. Rd3 {[%clk 0:00:09.4]} 51...
Rb5 {[%clk 0:00:01.8]} 52. f4 {[%clk 0:00:10.3]} 52... gxf4 {[%clk 0:00:01.8]}
53. Bxf4 {[%clk 0:00:11.2]} 53... Rd5 {[%clk 0:00:02.2]} 54. Re3+ {[%clk
0:00:06.6]} 54... Kf7 {[%clk 0:00:02.3]} 55. Re2 {[%clk 0:00:05.2]} 55... Rd7
{[%clk 0:00:02.6]} 56. Bd2 {[%clk 0:00:05]} 56... Kg6 {[%clk 0:00:02.9]} 57. Bc3
{[%clk 0:00:05.2]} 57... Bd5 {[%clk 0:00:02.9]} 58. Bb2 {[%clk 0:00:05.6]} 58...
Rf7 {[%clk 0:00:03.2]} 59. Kg1 {[%clk 0:00:05.6]} 59... f5 {[%clk 0:00:03.6]}
60. Rf2 {[%clk 0:00:06]} 60... fxg4 {[%clk 0:00:03.4]} 61. Rxf7 {[%clk
0:00:06.9]} 61... Kxf7 {[%clk 0:00:02.6]} 62. hxg4 {[%clk 0:00:07.8]} 62... Kg6
{[%clk 0:00:03.5]} 63. Kh2 {[%clk 0:00:08.3]} 63... Kg5 {[%clk 0:00:03.9]} 64.
Kh3 {[%clk 0:00:08.8]} 64... Be6 {[%clk 0:00:03.2]} 65. Bc1+ {[%clk 0:00:09.7]}
65... Kg6 {[%clk 0:00:03.7]} 66. Kxh4 {[%clk 0:00:10.2]} 66... Bxg4 {[%clk
0:00:04.6]} 1/2-1/2

[Event "*** SCC Grand Prix: Titled Tuesday Blitz"]
[Site "Chess.com"]
[Date "2020.07.14"]
[Round "10"]
[White "Konavets"]
[Black "GregShahade"]
[Result "1-0"]
[WhiteElo "3039"]
[BlackElo "2726"]
[TimeControl "180+1"]
[EndTime "12:00:08 PDT"]
[Termination "Konavets won by resignation"]

1. e4 {[%clk 0:03:00.9]} 1... e5 {[%clk 0:03:00.1]} 2. Nf3 {[%clk 0:03:00.8]}
2... Nc6 {[%clk 0:03:00.6]} 3. Bc4 {[%clk 0:03:01.3]} 3... Nf6 {[%clk
0:03:00.3]} 4. Ng5 {[%clk 0:02:58.7]} 4... d5 {[%clk 0:03:00]} 5. exd5 {[%clk
0:02:59.6]} 5... Na5 {[%clk 0:03:00.3]} 6. Bb5+ {[%clk 0:03:00]} 6... c6 {[%clk
0:03:00.8]} 7. dxc6 {[%clk 0:03:00.9]} 7... bxc6 {[%clk 0:03:01.7]} 8. Bd3
{[%clk 0:03:01.3]} 8... Nd5 {[%clk 0:02:58.7]} 9. Nf3 {[%clk 0:02:59.5]} 9...
Bd6 {[%clk 0:02:55.6]} 10. O-O {[%clk 0:02:59.6]} 10... O-O {[%clk 0:02:55.6]}
11. Re1 {[%clk 0:03:00]} 11... f5 {[%clk 0:02:56.2]} 12. Nxe5 {[%clk 0:02:58]}
12... Qf6 {[%clk 0:02:56.9]} 13. Nf3 {[%clk 0:02:34.1]} 13... g5 {[%clk
0:02:56.7]} 14. c3 {[%clk 0:02:27.1]} 14... c5 {[%clk 0:02:22.2]} 15. Qa4 {[%clk
0:02:21.3]} 15... Nf4 {[%clk 0:02:07.2]} 16. Bf1 {[%clk 0:02:11]} 16... Bb7
{[%clk 0:01:44.3]} 17. d3 {[%clk 0:01:53.4]} 17... Bxf3 {[%clk 0:01:36.5]} 18.
gxf3 {[%clk 0:01:47.8]} 18... Qh6 {[%clk 0:01:21.6]} 19. Bxf4 {[%clk 0:01:46.7]}
19... Bxf4 {[%clk 0:01:21.5]} 20. h3 {[%clk 0:01:37.7]} 20... Nc6 {[%clk
0:01:19.9]} 21. Na3 {[%clk 0:00:40.4]} 21... Ne5 {[%clk 0:01:09.8]} 22. Bg2
{[%clk 0:00:33.2]} 22... Kh8 {[%clk 0:01:01.9]} 23. Nc4 {[%clk 0:00:32.3]} 23...
Nxd3 {[%clk 0:00:57]} 24. Red1 {[%clk 0:00:27]} 24... Rad8 {[%clk 0:00:56.4]}
25. Qc2 {[%clk 0:00:25.3]} 25... Ne5 {[%clk 0:00:31.1]} 26. Rxd8 {[%clk
0:00:20.8]} 26... Rxd8 {[%clk 0:00:32]} 27. Nxe5 {[%clk 0:00:20.8]} 27... Bxe5
{[%clk 0:00:32.2]} 28. Qxf5 {[%clk 0:00:20.6]} 28... Bg7 {[%clk 0:00:12.3]} 29.
Re1 {[%clk 0:00:19.3]} 29... Rf8 {[%clk 0:00:11.5]} 30. Qxc5 {[%clk 0:00:19]}
30... Qa6 {[%clk 0:00:10]} 31. a3 {[%clk 0:00:17.4]} 31... Qb7 {[%clk
0:00:07.6]} 32. b4 {[%clk 0:00:14.5]} 32... Qf7 {[%clk 0:00:08.2]} 33. Re4
{[%clk 0:00:08.8]} 33... a6 {[%clk 0:00:07.9]} 34. f4 {[%clk 0:00:08.7]} 34...
gxf4 {[%clk 0:00:06.7]} 35. Bf3 {[%clk 0:00:09.3]} 35... Qg6+ {[%clk 0:00:05.5]}
36. Kh2 {[%clk 0:00:09.4]} 36... Rg8 {[%clk 0:00:06]} 37. Qh5 {[%clk 0:00:08.2]}
37... Qd6 {[%clk 0:00:02.9]} 38. Re1 {[%clk 0:00:04.2]} 38... Bxc3 {[%clk
0:00:02.8]} 39. Rg1 {[%clk 0:00:04.3]} 39... Rxg1 {[%clk 0:00:02]} 40. Kxg1
{[%clk 0:00:05.2]} 40... Qg6+ {[%clk 0:00:01.7]} 41. Qxg6 {[%clk 0:00:05.4]}
41... hxg6 {[%clk 0:00:02.5]} 42. Bb7 {[%clk 0:00:05.5]} 42... Bb2 {[%clk
0:00:03.2]} 43. a4 {[%clk 0:00:05.2]} 43... Bc3 {[%clk 0:00:03]} 44. b5 {[%clk
0:00:03.7]} 44... axb5 {[%clk 0:00:03.9]} 45. axb5 {[%clk 0:00:04.2]} 45... Bd4
{[%clk 0:00:04.6]} 46. Kf1 {[%clk 0:00:04.7]} 46... Kg7 {[%clk 0:00:05.1]} 47.
Ke2 {[%clk 0:00:04.8]} 47... Kf6 {[%clk 0:00:05.7]} 48. f3 {[%clk 0:00:05.4]}
48... Ke5 {[%clk 0:00:06.2]} 49. Be4 {[%clk 0:00:05]} 49... g5 {[%clk
0:00:06.6]} 50. Kd3 {[%clk 0:00:05.1]} 50... Bc5 {[%clk 0:00:06.1]} 51. Bb7
{[%clk 0:00:05.5]} 51... Kd6 {[%clk 0:00:06.6]} 52. Ke4 {[%clk 0:00:05.6]} 52...
Ke6 {[%clk 0:00:07.1]} 53. Bc8+ {[%clk 0:00:05.6]} 53... Kd6 {[%clk 0:00:06.3]}
54. Kf5 {[%clk 0:00:06.1]} 54... Kc7 {[%clk 0:00:05.7]} 55. Be6 {[%clk
0:00:05.5]} 55... Kb6 {[%clk 0:00:06.4]} 56. Kxg5 {[%clk 0:00:04.5]} 56... Kxb5
{[%clk 0:00:06.1]} 57. h4 {[%clk 0:00:04.9]} 57... Kc6 {[%clk 0:00:07]} 58. Kg6
{[%clk 0:00:04.1]} 58... Kd6 {[%clk 0:00:07.1]} 59. Kf7 {[%clk 0:00:04.4]} 59...
Bd4 {[%clk 0:00:05.6]} 60. h5 {[%clk 0:00:04.9]} 60... Ke5 {[%clk 0:00:04.5]}
61. h6 {[%clk 0:00:04.9]} 61... Kd6 {[%clk 0:00:04.6]} 62. h7 {[%clk 0:00:05.4]}
62... Kc7 {[%clk 0:00:04.5]} 63. Bg4 {[%clk 0:00:06.3]} 63... Kd6 {[%clk
0:00:05]} 64. Kg8 {[%clk 0:00:07.2]} 64... Ke7 {[%clk 0:00:05.6]} 65. h8=Q
{[%clk 0:00:08]} 65... Bxh8 {[%clk 0:00:05.9]} 66. Kxh8 {[%clk 0:00:08.9]} 66...
Kf6 {[%clk 0:00:06.6]} 67. Kh7 {[%clk 0:00:09.7]} 67... Kg5 {[%clk 0:00:07.5]}
68. Kg7 {[%clk 0:00:10.1]} 68... Kh4 {[%clk 0:00:08.1]} 69. Kf6 {[%clk 0:00:11]}
69... Kg3 {[%clk 0:00:08.9]} 70. Kf5 {[%clk 0:00:11.7]} 70... Kh4 {[%clk
0:00:09.7]} 71. Ke4 {[%clk 0:00:11.5]} 71... Kg3 {[%clk 0:00:10.1]} 72. Bc8
{[%clk 0:00:12.4]} 72... Kh4 {[%clk 0:00:11]} 73. Kxf4 {[%clk 0:00:12.6]} 73...
Kh5 {[%clk 0:00:11.6]} 74. Ke5 {[%clk 0:00:13.5]} 74... Kh6 {[%clk 0:00:12.5]}
75. f4 {[%clk 0:00:14.2]} 75... Kg7 {[%clk 0:00:13.4]} 76. f5 {[%clk 0:00:14.8]}
76... Kf8 {[%clk 0:00:14.3]} 77. f6 {[%clk 0:00:15.3]} 77... Kg8 {[%clk
0:00:15.2]} 78. Be6+ {[%clk 0:00:14.7]} 78... Kh7 {[%clk 0:00:16.1]} 79. Kf5
{[%clk 0:00:15]} 79... Kh8 {[%clk 0:00:16.4]} 80. Bc8 {[%clk 0:00:10.5]} 80...
Kh7 {[%clk 0:00:17.3]} 81. Ke6 {[%clk 0:00:10.6]} 81... Kh8 {[%clk 0:00:17.8]}
82. Ke7 {[%clk 0:00:10.9]} 82... Kh7 {[%clk 0:00:18.6]} 83. f7 {[%clk
0:00:10.8]} 83... Kg6 {[%clk 0:00:18.5]} 84. f8=Q {[%clk 0:00:10.9]} 84... Kh7
{[%clk 0:00:19.4]} 85. Qf5+ {[%clk 0:00:09.9]} 1-0

[Event "*** SCC Grand Prix: Titled Tuesday Blitz"]
[Site "Chess.com"]
[Date "2020.07.14"]
[Round "10"]
[White "XxPetroffsxX"]
[Black "mfwagnerpeixoto"]
[Result "0-1"]
[WhiteElo "1968"]
[BlackElo "2236"]
[TimeControl "180+1"]
[EndTime "12:00:09 PDT"]
[Termination "mfwagnerpeixoto won on time"]

1. e4 {[%clk 0:03:00.4]} 1... c5 {[%clk 0:02:58.4]} 2. Nc3 {[%clk 0:02:57.1]}
2... Nc6 {[%clk 0:02:57.4]} 3. g3 {[%clk 0:02:57.3]} 3... g6 {[%clk 0:02:57]} 4.
Bg2 {[%clk 0:02:57.6]} 4... Bg7 {[%clk 0:02:56.7]} 5. d3 {[%clk 0:02:57.8]} 5...
d6 {[%clk 0:02:56.9]} 6. Be3 {[%clk 0:02:58.3]} 6... h5 {[%clk 0:02:54.7]} 7. h4
{[%clk 0:02:57.8]} 7... Nf6 {[%clk 0:02:48]} 8. Nge2 {[%clk 0:02:48.8]} 8... Ng4
{[%clk 0:02:47]} 9. Bc1 {[%clk 0:02:47]} 9... e6 {[%clk 0:02:39.9]} 10. O-O
{[%clk 0:02:42]} 10... Bd7 {[%clk 0:02:36.9]} 11. a3 {[%clk 0:02:40.6]} 11...
Rb8 {[%clk 0:02:35.1]} 12. Rb1 {[%clk 0:02:39.7]} 12... a5 {[%clk 0:02:26.4]}
13. f3 {[%clk 0:02:26.2]} 13... Nge5 {[%clk 0:02:20.4]} 14. Be3 {[%clk
0:02:13.7]} 14... b5 {[%clk 0:02:15.2]} 15. d4 {[%clk 0:02:11.1]} 15... Nc4
{[%clk 0:02:12.9]} 16. Bf2 {[%clk 0:02:05]} 16... cxd4 {[%clk 0:02:06.4]} 17.
Nxd4 {[%clk 0:02:04.2]} 17... Nxd4 {[%clk 0:02:03.6]} 18. Bxd4 {[%clk
0:02:03.6]} 18... Be5 {[%clk 0:01:52]} 19. f4 {[%clk 0:01:59.5]} 19... Bxd4+
{[%clk 0:01:43.3]} 20. Qxd4 {[%clk 0:01:57.3]} 20... Qb6 {[%clk 0:01:36.5]} 21.
Qxb6 {[%clk 0:01:48.5]} 21... Rxb6 {[%clk 0:01:37.4]} 22. b4 {[%clk 0:01:27.9]}
22... Nxa3 {[%clk 0:01:26.3]} 23. Rb3 {[%clk 0:01:25]} 23... axb4 {[%clk
0:01:23.7]} 24. Rxb4 {[%clk 0:01:24.5]} 24... Nxc2 {[%clk 0:01:23.6]} 25. Rb2
{[%clk 0:01:23.2]} 25... Ne3 {[%clk 0:01:20.9]} 26. Rfb1 {[%clk 0:01:22.5]}
26... Nxg2 {[%clk 0:01:08.1]} 27. Kxg2 {[%clk 0:01:22.5]} 27... Ke7 {[%clk
0:00:58.7]} 28. Rb4 {[%clk 0:01:03.5]} 28... Rc8 {[%clk 0:00:55.6]} 29. R1b3
{[%clk 0:00:56.6]} 29... Rc5 {[%clk 0:00:44.6]} 30. Kf3 {[%clk 0:00:52.3]} 30...
f5 {[%clk 0:00:36.6]} 31. exf5 {[%clk 0:00:48.8]} 31... gxf5 {[%clk 0:00:37.5]}
32. Ke3 {[%clk 0:00:47.2]} 32... Bc6 {[%clk 0:00:31.9]} 33. Kd4 {[%clk
0:00:46.2]} 33... Bd7 {[%clk 0:00:27.4]} 34. Rb2 {[%clk 0:00:33.6]} 34... Rb8
{[%clk 0:00:24.4]} 35. Na4 {[%clk 0:00:27.5]} 35... Rd5+ {[%clk 0:00:21.4]} 36.
Ke3 {[%clk 0:00:25.3]} 36... Rb7 {[%clk 0:00:16]} 37. Nc3 {[%clk 0:00:24.6]}
37... Rc5 {[%clk 0:00:15.2]} 38. Na4 {[%clk 0:00:23.3]} 38... Rc1 {[%clk
0:00:13.8]} 39. Kd2 {[%clk 0:00:19.7]} 39... Rg1 {[%clk 0:00:13.1]} 40. Nc3
{[%clk 0:00:17.2]} 40... Rxg3 {[%clk 0:00:12.4]} 41. Ne2 {[%clk 0:00:16.1]}
41... Rg2 {[%clk 0:00:11.9]} 42. Ke3 {[%clk 0:00:15.8]} 42... Bc6 {[%clk
0:00:10.8]} 43. Nd4 {[%clk 0:00:14.3]} 43... Rxb2 {[%clk 0:00:10.3]} 44. Nxc6+
{[%clk 0:00:14.3]} 44... Kd7 {[%clk 0:00:10.6]} 45. Rxb2 {[%clk 0:00:14]} 45...
Kxc6 {[%clk 0:00:10.3]} 46. Kd4 {[%clk 0:00:14.2]} 46... Kd7 {[%clk 0:00:09.9]}
47. Rb4 {[%clk 0:00:14.2]} 47... Rb6 {[%clk 0:00:09.8]} 48. Ke3 {[%clk
0:00:13.3]} 48... Ke7 {[%clk 0:00:10.2]} 49. Kd4 {[%clk 0:00:13.4]} 49... Kf6
{[%clk 0:00:10.1]} 50. Rb2 {[%clk 0:00:11.9]} 50... Rc6 {[%clk 0:00:09.8]} 51.
Rxb5 {[%clk 0:00:11.6]} 51... Rc2 {[%clk 0:00:09]} 52. Kd3 {[%clk 0:00:10.6]}
52... Rh2 {[%clk 0:00:08.5]} 53. Ke3 {[%clk 0:00:10.4]} 53... Rxh4 {[%clk
0:00:07.9]} 54. Rb8 {[%clk 0:00:09.6]} 54... Rh3+ {[%clk 0:00:07.7]} 55. Kf2
{[%clk 0:00:08.2]} 55... e5 {[%clk 0:00:07.9]} 56. Rf8+ {[%clk 0:00:06.9]} 56...
Ke6 {[%clk 0:00:08.2]} 57. fxe5 {[%clk 0:00:05.8]} 57... dxe5 {[%clk 0:00:07.8]}
58. Re8+ {[%clk 0:00:05.5]} 58... Kd5 {[%clk 0:00:07.4]} 59. Ra8 {[%clk
0:00:03.1]} 59... Rd3 {[%clk 0:00:05.8]} 60. Rd8+ {[%clk 0:00:01.1]} 60... Ke4
{[%clk 0:00:05.6]} 0-1